bitfinex/quotes_SOLUSD_20250212
["timestamp","ask_amount","ask_price","bid_price","bid_amount"]
[1739366493484,0.10359206,198.05,198.03,0.063]
[1739366494185,0.10359206,198.05,198.03,9.86720275]
[1739366494488,0.10359206,198.05,198.04,9.80420275]
[1739366494784,0.10359206,198.05,198.03,9.86720275]
[1739366496285,0.10359206,198.05,198.04,23.21605128]
[1739366497572,0.10359206,198.05,198.04,28.26545128]
[1739366498274,0.10359206,198.05,198.04,9.80420275]
[1739366498590,0.10359206,198.05,198.03,14.91680275]
[1739366498896,0.10359206,198.05,198.04,9.80420275]
[1739366500394,0.10359206,198.05,198.04,28.26545128]
[1739366502477,0.10359206,198.05,198.04,18.46124853]
[1739366503910,0.10359206,198.05,198.04,28.26545128]
[1739366508012,0.10359206,198.05,198.04,18.46124853]
[1739366508694,0.10359206,198.05,198.03,0.063]
[1739366508889,9.90779481,198.05,198.03,0.063]
[1739366509979,9.80420275,198.04,198.03,0.063]
[1739366510301,11.30990275,198.04,198.03,0.063]
[1739366510872,14.84450275,198.04,198.03,0.063]
[1739366519010,3.5346,198.04,198.03,0.063]
[1739366519196,0.10359206,198.05,198.03,0.063]
[1739366520705,0.10359206,198.05,198.03,13.47484853]
[1739366520901,0.10359206,198.05,198.04,23.21605128]
[1739366522702,0.10359206,198.05,198.04,28.51643128]
[1739366522905,0.10359206,198.05,198.04,28.76741128]
[1739366523696,0.10359206,198.05,198.04,28.26545128]
[1739366524103,0.10359206,198.05,198.04,28.51643128]
[1739366524806,0.10359206,198.05,198.04,9.80420275]
[1739366525002,0.10359206,198.05,198.03,29.86720275]
[1739366525301,0.10359206,198.05,198.03,20.063]
[1739366525488,0.10359206,198.05,198.04,23.21605128]
[1739366525894,0.10359206,198.05,198.04,9.80420275]
[1739366526212,0.10359206,198.05,198.03,0.063]
[1739366527115,0.10359206,198.05,198.04,9.80420275]
[1739366527311,0.10359206,198.05,198.04,23.21605128]
[1739366527711,0.10359206,198.05,198.04,13.41184853]
[1739366527894,0.10359206,198.05,198.04,23.21605128]
[1739366529195,0.10359206,198.05,198.04,13.41184853]
[1739366529610,0.10359206,198.05,198.04,28.72890224]
[1739366529817,0.10359206,198.05,198.04,15.31705371]
[1739366529994,0.10359206,198.05,198.03,0.063]
[1739366531414,0.10359206,198.05,198.04,15.31705371]
[1739366533821,0.10359206,198.05,198.03,5.1127]
[1739366533822,0.10359206,198.05,198.03,20.42975371]
[1739366535118,0.10359206,198.05,198.04,15.31705371]
[1739366535301,0.10359206,198.05,198.04,28.72890224]
[1739366535620,0.10359206,198.05,198.04,33.77830224]
[1739366535921,0.10359206,198.05,198.04,34.02928224]
[1739366536299,0.10359206,198.05,198.04,18.46124853]
[1739366536823,12.45064577,198.1,198.04,18.46124853]
[1739366537195,12.45064577,198.1,198.04,33.77830224]
[1739366538509,15.31705371,198.09,198.03,15.38005371]
[1739366538722,15.31705371,198.08,198.03,0.063]
[1739366539415,18.85095371,198.08,198.03,0.063]
[1739366540621,3.5339,198.08,198.03,15.38005371]
[1739366540824,15.31705371,198.04,198.03,0.063]
[1739366541211,18.85145371,198.05,198.03,0.063]
[1739366541408,3.5344,198.05,198.03,0.063]
[1739366543826,1.5391,198.07,198.03,0.063]
[1739366544026,5.0733,198.07,198.03,15.38005371]
[1739366544213,1.5391,198.07,198.03,15.38005371]
[1739366544817,3.5339,198.08,198.03,15.38005371]
[1739366545014,0.03,198.1,198.03,0.063]
[1739366545234,0.03,198.1,198.07,15.31705371]
[1739366546536,0.03,198.1,198.06,15.31705371]
[1739366547100,0.03,198.1,198.09,15.31705371]
[1739366547305,0.03,198.1,198.09,28.72890224]
[1739366548007,0.03,198.1,198.09,34.02808224]
[1739366548205,0.03,198.1,198.09,49.59611595]
[1739366548503,0.03,198.1,198.09,50.65579621]
[1739366548840,0.03,198.11,198.1,13.91380853]
[1739366549010,0.03,198.11,198.1,44.54791595]
[1739366549411,0.03,198.11,198.1,29.23086224]
[1739366549703,0.03,198.11,198.1,28.72890224]
[1739366549927,0.03,198.11,198.09,15.31705371]
[1739366550132,0.03,198.11,198.1,15.31705371]
[1739366550305,0.03,198.11,198.1,28.72890224]
[1739366550925,0.03,198.11,198.1,28.97988224]
[1739366551233,0.03,198.11,198.1,49.59581595]
[1739366555946,0.03,198.11,198.1,28.97988224]
[1739366556155,0.03,198.11,198.1,29.23086224]
[1739366556528,0.03,198.11,198.1,28.97988224]
[1739366556727,0.03,198.11,198.1,29.04288224]
[1739366557622,0.03,198.11,198.1,23.27041432]
[1739366559664,0.03,198.11,198.1,28.78005024]
[1739366562147,0.03,198.11,198.1,34.07893024]
[1739366562342,0.03,198.11,198.1,49.63511195]
[1739366565250,0.14,198.18,198.14,0.50196]
[1739366565436,0.14,198.18,198.17,28.96803024]
[1739366565639,0.14,198.18,198.17,29.21901024]
[1739366567170,0.14,198.18,198.17,34.26511024]
[1739366567658,0.03,198.3,198.22,13.66282853]
[1739366567955,0.03,198.3,198.24,29.21901024]
[1739366568545,0.03,198.3,198.25,13.41184853]
[1739366568781,0.03,198.3,198.29,15.30520171]
[1739366569062,0.03,198.3,198.29,29.21901024]
[1739366569248,0.03,198.3,198.29,34.26211024]
[1739366569446,0.03,198.3,198.29,34.01113024]
[1739366569759,0.03,198.3,198.29,28.71705024]
[1739366569956,0.03,198.3,198.29,28.96803024]
[1739366570453,0.03,198.3,198.29,34.26211024]
[1739366570857,0.03,198.3,198.29,49.56731195]
[1739366571055,8.8195,198.43,198.3,13.91380853]
[1739366571056,1.6241,198.43,198.3,13.91380853]
[1739366571250,1.6241,198.43,198.39,15.30520171]
[1739366571644,1.6241,198.43,198.4,15.30520171]
[1739366571960,1.6241,198.43,198.37,13.41184853]
[1739366572154,1.6241,198.43,198.39,15.30520171]
[1739366572355,25.08476506,198.49,198.38,13.41184853]
[1739366572356,14.0387412,198.51,198.42,15.30520171]
[1739366572561,14.0387412,198.51,198.4,15.30520171]
[1739366572562,7.91457993,198.51,198.48,15.30520171]
[1739366572866,11.7375,198.54,198.48,15.30520171]
[1739366573155,8.2116,198.54,198.48,28.71705024]
[1739366573354,23.51680171,198.54,198.48,28.71705024]
[1739366573960,15.30520171,198.49,198.42,15.30520171]
[1739366574159,15.30520171,198.49,198.43,13.91380853]
[1739366574356,15.30520171,198.49,198.42,15.30520171]
[1739366574357,15.30520171,198.53,198.4,5.0401]
[1739366574535,15.30520171,198.47,198.38,8.31885061]
[1739366574739,11.7373,198.54,198.39,14.91380853]
[1739366574946,1.0,198.52,198.39,14.91380853]
[1739366575357,4.5261,198.52,198.4,7.94245013]
[1739366575660,1.0,198.58,198.42,1.0]
[1739366575661,1.0,198.53,198.42,1.0]
[1739366575857,15.30520171,198.45,198.42,1.0]
[1739366576367,15.30520171,198.46,198.43,1.0]
[1739366576551,15.30520171,198.47,198.44,1.0]
[1739366576753,15.30520171,198.48,198.44,1.0]
[1739366577057,15.30520171,198.48,198.42,1.0]
[1739366577242,18.83200171,198.48,198.44,1.0]
[1739366577443,18.83200171,198.48,198.45,1.0]
[1739366577745,18.83200171,198.48,198.38,22.23265914]
[1739366577746,18.83200171,198.48,198.44,1.0]
[1739366577945,20.0,198.52,198.44,1.0]
[1739366578145,15.30520171,198.48,198.45,1.0]
[1739366578442,15.30520171,198.56,198.52,1.0]
[1739366578648,8.0834,198.59,198.5,1.0]
[1739366578855,1.0,198.57,198.48,1.0]
[1739366579047,1.0,198.55,198.46,1.0]
[1739366579256,1.0,198.53,198.47,1.0]
[1739366579571,12.34,198.54,198.47,1.0]
[1739366579746,13.34,198.54,198.43,1.0]
[1739366579941,13.34,198.54,198.36,16.63373505]
[1739366579942,15.30520171,198.44,198.4,1.0]
[1739366580150,15.30520171,198.49,198.45,1.0]
[1739366580353,15.30520171,198.51,198.48,1.0]
[1739366580548,15.30520171,198.5,198.46,1.0]
[1739366580846,15.30520171,198.49,198.46,1.0]
[1739366581155,15.30520171,198.48,198.46,1.0]
[1739366581343,15.30520171,198.48,198.45,1.0]
[1739366581539,15.30520171,198.46,198.43,1.0]
[1739366581740,15.30520171,198.44,198.39,1.0]
[1739366581967,15.30520171,198.41,198.39,1.0]
[1739366582349,7.0791,198.49,198.38,1.0]
[1739366582350,15.30520171,198.4,198.38,1.0]
[1739366582549,27.64640171,198.52,198.41,1.0]
[1739366582750,15.30520171,198.51,198.48,1.0]
[1739366582955,3.526,198.52,198.48,1.0]
[1739366583149,18.83120171,198.52,198.48,1.0]
[1739366583353,18.83120171,198.52,198.46,15.30520171]
[1739366583354,0.03,198.56,198.55,1.0]
[1739366584042,0.03,198.56,198.55,16.30520171]
[1739366584241,0.03,198.56,198.55,1.0]
[1739366584438,1.27937467,198.7,198.6,1.0]
[1739366584641,15.30520171,198.73,198.68,1.0]
[1739366584964,4.5213,198.79,198.65,1.0]
[1739366585157,15.30520171,198.7,198.65,1.0]
[1739366585361,15.30520171,198.69,198.66,1.0]
[1739366585557,15.30520171,198.7,198.66,1.0]
[1739366585759,24.35795425,198.67,198.63,1.0]
[1739366586069,24.35795425,198.66,198.61,1.0]
[1739366586376,24.35795425,198.68,198.63,1.0]
[1739366586552,12.3257,198.77,198.66,1.0]
[1739366586553,3.5216,198.77,198.66,1.0]
[1739366586872,24.35795425,198.71,198.66,1.0]
[1739366587172,24.35795425,198.7,198.66,1.0]
[1739366587369,24.35795425,198.7,198.67,1.0]
[1739366587559,24.35795425,198.7,198.63,24.35795425]
[1739366587560,24.35795425,198.7,198.66,1.0]
[1739366587867,24.35795425,198.68,198.64,1.0]
[1739366588066,24.35795425,198.65,198.61,1.0]
[1739366588274,24.35795425,198.68,198.61,25.35795425]
[1739366588444,12.3257,198.77,198.66,1.0]
[1739366588647,13.3257,198.77,198.64,1.0]
[1739366588949,24.35795425,198.66,198.61,1.0]
[1739366589166,24.35795425,198.65,198.6,1.0]
[1739366589366,17.22367016,198.7,198.6,1.0]
[1739366589572,24.35795425,198.63,198.57,1.0]
[1739366589746,1.0,198.69,198.56,1.0]
[1739366589747,24.35795425,198.61,198.56,1.0]
[1739366589952,1.0,198.66,198.54,1.0]
[1739366590279,24.35795425,198.63,198.57,1.0]
[1739366590573,24.35795425,198.65,198.58,1.0]
[1739366590774,24.35795425,198.6,198.53,25.35795425]
[1739366590944,24.35795425,198.62,198.55,24.35795425]
[1739366591149,24.35795425,198.61,198.54,25.35795425]
[1739366591486,24.35795425,198.6,198.55,1.0]
[1739366591656,24.35795425,198.66,198.58,24.35795425]
[1739366591984,1.0,198.7,198.58,1.0]
[1739366591985,24.35795425,198.64,198.58,1.0]
[1739366592278,24.35795425,198.65,198.58,25.35795425]
[1739366592450,24.35795425,198.65,198.59,1.0]
[1739366592651,24.35795425,198.65,198.58,24.35795425]
[1739366592869,24.35795425,198.65,198.58,25.35795425]
[1739366593173,24.35795425,198.62,198.58,1.0]
[1739366593347,24.35795425,198.62,198.56,1.0]
[1739366593660,24.35795425,198.58,198.53,1.0]
[1739366593857,24.35795425,198.58,198.56,1.0]
[1739366594061,24.35795425,198.59,198.54,1.0]
[1739366594265,24.35795425,198.57,198.52,1.0]
[1739366594567,24.35795425,198.57,198.5,29.39565425]
[1739366594568,1.0,198.59,198.47,1.0]
[1739366594766,0.03,198.61,198.52,1.0]
[1739366594959,24.35795425,198.56,198.52,1.0]
[1739366595142,24.35795425,198.58,198.53,1.0]
[1739366595344,0.03,198.61,198.57,1.0]
[1739366595662,0.03,198.61,198.58,1.0]
[1739366596171,24.38795425,198.61,198.58,1.0]
[1739366596671,0.03,198.61,198.58,1.0]
[1739366597376,0.03,198.61,198.59,1.0]
[1739366597953,24.35795425,198.6,198.58,1.0]
[1739366598157,24.35795425,198.6,198.56,6.0361]
[1739366598554,0.03,198.61,198.58,1.0]
[1739366598755,24.35795425,198.59,198.56,1.0]
[1739366598975,0.03,198.61,198.59,1.0]
[1739366599174,24.38795425,198.61,198.57,1.0]
[1739366599368,24.35795425,198.6,198.56,1.0]
[1739366600091,24.35795425,198.61,198.56,1.0]
[1739366600759,24.35795425,198.6,198.56,1.0]
[1739366601359,24.35795425,198.57,198.54,1.0]
[1739366601555,24.35795425,198.58,198.54,1.0]
[1739366601758,24.35795425,198.6,198.56,1.0]
[1739366602279,24.35795425,198.58,198.54,1.0]
[1739366602456,24.35795425,198.57,198.53,1.0]
[1739366602655,9.8091,198.66,198.54,1.0]
[1739366602656,24.35795425,198.58,198.54,1.0]
[1739366602858,24.35795425,198.57,198.53,1.0]
[1739366603460,24.35795425,198.58,198.53,1.0]
[1739366603982,24.35795425,198.61,198.54,25.35795425]
[1739366604286,24.35795425,198.6,198.56,1.0]
[1739366604488,24.35795425,198.6,198.54,24.35795425]
[1739366604489,24.35795425,198.59,198.55,1.0]
[1739366604667,24.35795425,198.58,198.53,1.0]
[1739366604990,24.35795425,198.6,198.56,1.0]
[1739366605199,20.0,198.62,198.57,1.0]
[1739366605200,24.35795425,198.62,198.57,1.0]
[1739366605369,24.35795425,198.61,198.57,1.0]
[1739366605698,24.35795425,198.6,198.57,1.0]
[1739366605869,24.35795425,198.6,198.53,5.0999]
[1739366605870,24.35795425,198.6,198.55,1.0]
[1739366606074,24.35795425,198.56,198.53,1.063]
[1739366606367,24.35795425,198.58,198.54,1.0]
[1739366606692,24.35795425,198.58,198.53,1.063]
[1739366606875,24.35795425,198.56,198.53,1.063]
[1739366607066,24.35795425,198.57,198.54,1.0]
[1739366607271,24.35795425,198.58,198.54,1.0]
[1739366607466,12.3338,198.64,198.54,1.0]
[1739366607467,24.35795425,198.57,198.54,1.0]
[1739366607874,24.35795425,198.56,198.54,1.0]
[1739366608068,24.35795425,198.58,198.54,1.0]
[1739366608274,24.35795425,198.57,198.53,1.063]
[1739366608882,24.35795425,198.63,198.56,1.0]
[1739366609086,24.35795425,198.63,198.58,1.0]
[1739366609285,27.88215425,198.63,198.58,1.0]
[1739366609463,24.35795425,198.61,198.58,1.0]
[1739366610085,24.35795425,198.6,198.57,1.0]
[1739366610385,24.35795425,198.59,198.56,1.0]
[1739366610586,24.35795425,198.6,198.56,1.0]
[1739366610889,3.5246,198.61,198.58,1.0]
[1739366611482,3.5242,198.63,198.59,1.0]
[1739366611706,3.5239,198.64,198.59,1.0]
[1739366611996,3.5239,198.64,198.62,1.0]
[1739366612171,27.88135425,198.67,198.62,1.0]
[1739366612370,24.35795425,198.66,198.62,1.0]
[1739366612696,3.5234,198.67,198.59,1.0]
[1739366612697,24.35795425,198.63,198.59,1.0]
[1739366612897,24.35795425,198.64,198.59,1.0]
[1739366613068,24.35795425,198.63,198.59,1.0]
[1739366613266,24.35795425,198.61,198.57,1.0]
[1739366613565,24.35795425,198.59,198.57,1.0]
[1739366613767,24.35795425,198.59,198.56,1.0]
[1739366614488,24.35795425,198.59,198.55,1.0]
[1739366614673,24.35795425,198.58,198.56,1.0]
[1739366614992,24.35795425,198.57,198.53,6.172]
[1739366615294,24.35795425,198.57,198.53,0.063]
[1739366616090,27.88365425,198.54,198.53,0.063]
[1739366616673,28.88365425,198.54,198.53,0.0001]
[1739366617369,28.88365425,198.54,198.44,59.9]
[1739366617690,24.35795425,198.47,198.44,60.9]
[1739366617896,24.35795425,198.47,198.44,59.9]
[1739366618366,27.88435425,198.5,198.4,1.0]
[1739366618567,24.35795425,198.43,198.39,1.063]
[1739366618765,24.35795425,198.45,198.4,1.0]
[1739366618969,24.35795425,198.49,198.42,25.35795425]
[1739366619391,24.35795425,198.49,198.43,24.35795425]
[1739366619570,24.35795425,198.49,198.42,25.35795425]
[1739366619775,24.35795425,198.46,198.42,1.0]
[1739366619979,24.35795425,198.45,198.4,1.0]
[1739366620293,24.35795425,198.43,198.39,0.063]
[1739366620495,24.35795425,198.42,198.39,0.063]
[1739366620677,24.35795425,198.41,198.39,0.063]
[1739366621603,24.35795425,198.4,198.39,0.063]
[1739366622693,48.7159085,198.4,198.39,0.063]
[1739366622882,24.35795425,198.34,198.33,0.063]
[1739366624289,27.88715425,198.34,198.33,0.063]
[1739366627312,20.0,198.31,198.22,1.063]
[1739366627509,24.35795425,198.25,198.22,1.063]
[1739366627809,24.35795425,198.24,198.22,0.063]
[1739366628608,27.88865425,198.26,198.22,0.063]
[1739366628815,24.35795425,198.27,198.24,1.0]
[1739366629788,24.35795425,198.31,198.25,1.0]
[1739366629977,3.5296,198.32,198.25,1.0]
[1739366629978,24.35795425,198.3,198.25,1.0]
[1739366630178,24.35795425,198.29,198.25,1.0]
[1739366630909,24.35795425,198.28,198.25,1.0]
[1739366631114,24.35795425,198.28,198.24,1.0]
[1739366631609,24.35795425,198.25,198.22,0.063]
[1739366631816,24.35795425,198.25,198.22,1.063]
[1739366632113,24.35795425,198.26,198.23,1.0]
[1739366633105,24.35795425,198.25,198.22,0.063]
[1739366633313,3.5307,198.26,198.22,0.063]
[1739366633490,3.5304,198.28,198.24,1.0]
[1739366633806,3.5304,198.28,198.25,1.0]
[1739366634591,3.5301,198.29,198.26,1.0]
[1739366634808,0.03,198.33,198.28,1.0]
[1739366635111,3.5595,198.33,198.3,1.0]
[1739366635412,0.03,198.33,198.31,1.0]
[1739366635787,0.03,198.33,198.3,1.0]
[1739366635986,0.03,198.33,198.31,1.0]
[1739366636978,0.03,198.33,198.3,1.0]
[1739366637317,24.35795425,198.31,198.27,1.0]
[1739366637496,24.35795425,198.3,198.26,1.0]
[1739366637700,24.35795425,198.29,198.26,1.0]
[1739366638025,24.35795425,198.31,198.26,1.0]
[1739366638317,0.03,198.33,198.29,1.0]
[1739366639387,24.35795425,198.31,198.28,1.0]
[1739366639588,24.35795425,198.32,198.28,1.0]
[1739366639795,24.35795425,198.32,198.27,1.0]
[1739366639989,24.35795425,198.31,198.27,1.0]
[1739366640287,0.03,198.33,198.25,1.0]
[1739366640288,24.35795425,198.29,198.25,1.0]
[1739366640486,24.35795425,198.28,198.26,1.0]
[1739366640689,24.35795425,198.3,198.26,1.0]
[1739366641105,24.35795425,198.32,198.26,1.0]
[1739366641409,24.35795425,198.32,198.27,1.0]
[1739366641809,0.03,198.33,198.29,1.0]
[1739366641987,0.03,198.33,198.29,25.35795425]
[1739366642207,0.03,198.33,198.3,1.0]
[1739366642388,0.03,198.33,198.32,1.0]
[1739366642601,0.03,198.33,198.32,25.35795425]
[1739366643489,24.35795425,198.45,198.35,0.50196]
[1739366643682,24.35795425,198.45,198.38,24.35795425]
[1739366644101,3.5269,198.47,198.41,1.0]
[1739366644102,24.35795425,198.46,198.41,1.0]
[1739366644410,24.35795425,198.46,198.42,1.0]
[1739366644724,3.5269,198.47,198.42,1.0]
[1739366644725,24.35795425,198.47,198.42,1.0]
[1739366645096,27.88465425,198.49,198.42,25.35795425]
[1739366645302,27.88465425,198.49,198.44,1.0]
[1739366645501,24.35795425,198.47,198.42,1.0]
[1739366646106,24.35795425,198.43,198.4,1.0]
[1739366646296,24.35795425,198.43,198.38,1.0]
[1739366646608,3.5285,198.38,198.32,1.0]
[1739366646813,24.35795425,198.36,198.31,1.0]
[1739366647000,3.5285,198.38,198.3,7.6184]
[1739366647199,24.35795425,198.34,198.3,7.6184]
[1739366648327,24.35795425,198.35,198.3,7.6184]
[1739366649206,27.88705425,198.35,198.3,7.6184]
[1739366649906,3.5291,198.35,198.32,1.0]
[1739366650103,24.35795425,198.4,198.35,1.0]
[1739366650323,24.35795425,198.41,198.35,1.0]
[1739366650692,24.35795425,198.37,198.33,1.0]
[1739366651626,24.35795425,198.38,198.33,1.0]
[1739366652411,24.35795425,198.34,198.3,7.6184]
[1739366652609,24.35795425,198.33,198.28,1.0]
[1739366652799,24.35795425,198.32,198.28,1.0]
[1739366652994,24.35795425,198.31,198.28,1.0]
[1739366653213,12.3494,198.39,198.28,1.0]
[1739366653214,24.35795425,198.32,198.28,1.0]
[1739366653503,24.35795425,198.33,198.29,1.0]
[1739366653842,24.35795425,198.32,198.27,1.0]
[1739366654003,24.35795425,198.3,198.26,60.98]
[1739366655031,24.35795425,198.3,198.27,1.0]
[1739366655237,24.35795425,198.32,198.27,1.0]
[1739366655732,3.5298,198.31,198.27,1.0]
[1739366655938,3.5295,198.33,198.29,1.0]
[1739366656241,13.41184853,198.42,198.32,24.35795425]
[1739366656420,24.35795425,198.4,198.34,1.0]
[1739366656733,12.3468,198.43,198.36,1.0]
[1739366656938,12.3468,198.43,198.36,25.35795425]
[1739366657269,12.3468,198.43,198.33,1.0]
[1739366657270,24.35795425,198.39,198.33,1.0]
[1739366657436,24.35795425,198.37,198.31,1.0]
[1739366657645,24.35795425,198.35,198.3,1.0]
[1739366658012,24.35795425,198.34,198.29,1.063]
[1739366658238,24.35795425,198.32,198.29,0.063]
[1739366659943,3.5298,198.31,198.29,0.063]
[1739366660537,27.88775425,198.31,198.29,0.063]
[1739366660740,3.5298,198.31,198.29,0.063]
[1739366661345,44.35795425,198.33,198.29,0.063]
[1739366661550,24.35795425,198.32,198.29,0.063]
[1739366661860,24.35795425,198.3,198.29,0.063]
[1739366662945,24.35795425,198.31,198.29,0.063]
[1739366663118,24.35795425,198.3,198.29,0.063]
[1739366663554,27.88795425,198.3,198.29,0.063]
[1739366664770,24.35795425,198.31,198.29,0.063]
[1739366664958,24.35795425,198.3,198.29,0.063]
[1739366666942,27.88795425,198.3,198.29,0.063]
[1739366667459,52.2459085,198.3,198.29,0.063]
[1739366667646,52.2459085,198.3,198.29,0.0001]
[1739366668752,27.88795425,198.3,198.29,0.0001]
[1739366669124,52.2459085,198.3,198.29,0.0001]
[1739366670454,27.88795425,198.3,198.29,0.0001]
[1739366671859,24.35795425,198.3,198.29,0.0001]
[1739366672157,27.88765425,198.32,198.29,0.0001]
[1739366673056,27.88765425,198.32,198.29,1.0001]
[1739366673230,24.35795425,198.33,198.29,1.0001]
[1739366673628,3.5289,198.37,198.33,1.0]
[1739366673832,24.35795425,198.36,198.33,0.89]
[1739366674031,24.35795425,198.36,198.31,0.89]
[1739366674254,24.35795425,198.35,198.31,0.89]
[1739366675154,24.35795425,198.36,198.31,0.89]
[1739366675865,3.5291,198.35,198.31,0.89]
[1739366676264,3.5291,198.35,198.32,0.89]
[1739366676956,27.88705425,198.35,198.31,0.89]
[1739366677168,24.35795425,198.34,198.3,0.89]
[1739366677465,0.03,198.38,198.34,0.89]
[1739366677757,0.03,198.38,198.37,0.89]
[1739366677959,0.03,198.38,198.37,0.78]
[1739366678261,0.03,198.38,198.36,0.78]
[1739366678461,0.03,198.38,198.37,0.78]
[1739366678636,0.03,198.38,198.37,7.0796]
[1739366678842,0.03,198.38,198.37,31.43755425]
[1739366679470,0.03,198.38,198.36,0.78]
[1739366679657,0.03,198.38,198.35,0.78]
[1739366680065,24.38795425,198.38,198.35,0.78]
[1739366680251,0.03,198.38,198.36,0.78]
[1739366680764,0.03,198.38,198.35,0.78]
[1739366680940,24.38795425,198.38,198.35,0.78]
[1739366681144,24.35795425,198.36,198.33,0.78]
[1739366681351,24.35795425,198.34,198.31,0.78]
[1739366681646,24.35795425,198.34,198.3,0.78]
[1739366681842,24.35795425,198.33,198.3,0.78]
[1739366682757,24.35795425,198.31,198.29,0.7801]
[1739366682964,24.35795425,198.31,198.3,0.78]
[1739366683162,24.35795425,198.32,198.29,0.7801]
[1739366683467,24.35795425,198.31,198.29,0.0001]
[1739366683868,12.3505,198.37,198.29,0.0001]
[1739366683869,24.35795425,198.3,198.29,0.0001]
[1739366684065,24.35795425,198.33,198.3,0.78]
[1739366684250,3.5289,198.36,198.3,0.78]
[1739366684251,24.35795425,198.34,198.3,0.78]
[1739366684648,3.5289,198.36,198.34,0.78]
[1739366684852,0.03,198.38,198.35,0.78]
[1739366685179,0.03,198.38,198.37,25.13795425]
[1739366686981,0.03,198.38,198.37,30.17895425]
[1739366687860,0.03,198.38,198.37,30.68091425]
[1739366689374,0.03,198.38,198.37,30.17895425]
[1739366689764,0.03,198.38,198.37,25.13795425]
[1739366691559,0.03,198.38,198.37,30.17895425]
[1739366692679,0.03,198.38,198.37,30.68091425]
[1739366692860,0.03,198.38,198.37,44.09276278]
[1739366694374,0.03,198.38,198.37,51.81556278]
[1739366694579,8.8452,198.53,198.38,1.0]
[1739366694580,24.35795425,198.52,198.38,1.0]
[1739366694754,24.38795425,198.53,198.49,0.78]
[1739366695168,24.35795425,198.52,198.49,0.78]
[1739366695360,24.38795425,198.53,198.49,0.78]
[1739366696176,24.35795425,198.52,198.49,0.78]
[1739366696360,0.03,198.53,198.49,0.78]
[1739366696361,24.38795425,198.53,198.49,0.78]
[1739366696571,27.88395425,198.52,198.49,0.78]
[1739366696956,3.526,198.52,198.5,0.78]
[1739366697381,27.88395425,198.52,198.5,0.78]
[1739366697583,24.35795425,198.51,198.5,0.78]
[1739366697758,27.88395425,198.52,198.5,0.78]
[1739366699394,27.88395425,198.52,198.51,0.78]
[1739366699589,3.526,198.52,198.51,0.78]
[1739366699790,3.5559,198.53,198.51,0.78]
[1739366699973,3.5559,198.53,198.52,0.78]
[1739366700368,3.5559,198.53,198.51,0.78]
[1739366700575,3.5559,198.53,198.5,0.78]
[1739366700576,24.35795425,198.52,198.5,0.78]
[1739366700765,27.91385425,198.53,198.52,0.78]
[1739366701292,3.5559,198.53,198.52,0.78]
[1739366701881,3.5559,198.53,198.51,0.78]
[1739366702083,3.5559,198.53,198.5,0.78]
[1739366702383,3.5559,198.53,198.52,0.78]
[1739366703084,0.03,198.53,198.52,0.78]
[1739366708089,15.27813062,198.53,198.51,0.78]
[1739366708289,15.24813062,198.52,198.5,0.78]
[1739366708468,15.24813062,198.51,198.47,0.78]
[1739366708668,15.24813062,198.5,198.47,0.78]
[1739366709068,15.24813062,198.49,198.46,0.78]
[1739366709264,15.24813062,198.49,198.47,0.78]
[1739366709998,3.5559,198.53,198.4,0.50196]
[1739366709999,15.24813062,198.48,198.46,0.78]
[1739366710311,15.24813062,198.47,198.46,0.78]
[1739366710879,15.24813062,198.48,198.46,0.78]
[1739366711078,15.24813062,198.49,198.47,0.78]